[Event "*** Titled Tuesday Blitz"]
[Site "Chess.com"]
[Date "2020.12.01"]
[Round "6"]
[White "TC2304"]
[Black "AquivaRubinstein"]
[Result "0-1"]
[WhiteElo "2327"]
[BlackElo "2487"]
[TimeControl "180+1"]
[EndTime "11:07:21 PST"]
[Termination "AquivaRubinstein won by checkmate"]

1. d4 {[%clk 0:03:00.9]} 1... Nf6 {[%clk 0:02:59.9]} 2. Bg5 {[%clk 0:03:01]}
2... Ne4 {[%clk 0:02:59.3]} 3. Bf4 {[%clk 0:03:01.2]} 3... c5 {[%clk 0:02:59.2]}
4. f3 {[%clk 0:03:01.3]} 4... Nf6 {[%clk 0:02:53.4]} 5. dxc5 {[%clk 0:03:01.4]}
5... e6 {[%clk 0:02:40.6]} 6. Bd6 {[%clk 0:03:00.7]} 6... Na6 {[%clk 0:02:36.2]}
7. Nc3 {[%clk 0:02:41.7]} 7... Nxc5 {[%clk 0:02:32.8]} 8. e4 {[%clk 0:02:38]}
8... Bxd6 {[%clk 0:02:00.3]} 9. Qxd6 {[%clk 0:02:37.5]} 9... Qe7 {[%clk
0:02:00.8]} 10. Qd4 {[%clk 0:02:24]} 10... O-O {[%clk 0:01:45.4]} 11. e5 {[%clk
0:02:23.8]} 11... Ne8 {[%clk 0:01:41.6]} 12. Nb5 {[%clk 0:02:13.4]} 12... b6
{[%clk 0:01:33.5]} 13. O-O-O {[%clk 0:02:05.7]} 13... Bb7 {[%clk 0:01:30.3]} 14.
Kb1 {[%clk 0:01:55.6]} 14... Bc6 {[%clk 0:01:29.4]} 15. f4 {[%clk 0:01:41.4]}
15... f6 {[%clk 0:01:09]} 16. Nf3 {[%clk 0:01:39.8]} 16... Bxf3 {[%clk
0:01:01.9]} 17. gxf3 {[%clk 0:01:39.9]} 17... fxe5 {[%clk 0:01:02.2]} 18. fxe5
{[%clk 0:01:39.9]} 18... a6 {[%clk 0:00:57.4]} 19. Nc3 {[%clk 0:01:35.7]} 19...
Nc7 {[%clk 0:00:50.6]} 20. Rg1 {[%clk 0:01:30.6]} 20... Qf7 {[%clk 0:00:47.8]}
21. Be2 {[%clk 0:01:25]} 21... Rad8 {[%clk 0:00:42.6]} 22. Qd6 {[%clk
0:01:22.9]} 22... Na8 {[%clk 0:00:36.9]} 23. Rg3 {[%clk 0:01:20.4]} 23... Nb7
{[%clk 0:00:32.5]} 24. Qd3 {[%clk 0:01:16.7]} 24... d6 {[%clk 0:00:31.2]} 25.
Qxa6 {[%clk 0:01:13.1]} 25... Nc5 {[%clk 0:00:29.3]} 26. Qc4 {[%clk 0:01:06.4]}
26... dxe5 {[%clk 0:00:24.5]} 27. Rxd8 {[%clk 0:00:59.2]} 27... Rxd8 {[%clk
0:00:22.7]} 28. b4 {[%clk 0:00:57.9]} 28... Nb7 {[%clk 0:00:19.2]} 29. Ne4
{[%clk 0:00:57.8]} 29... h6 {[%clk 0:00:15]} 30. Qc6 {[%clk 0:00:55.9]} 30...
Kh7 {[%clk 0:00:10.7]} 31. Bc4 {[%clk 0:00:53.8]} 31... Qd7 {[%clk 0:00:10.3]}
32. Ng5+ {[%clk 0:00:50.3]} 32... hxg5 {[%clk 0:00:08.9]} 33. Rh3+ {[%clk
0:00:50.4]} 33... Kg6 {[%clk 0:00:08]} 34. Bd3+ {[%clk 0:00:41.5]} 34... Kf6
{[%clk 0:00:08.2]} 35. Qe4 {[%clk 0:00:38.5]} 35... Qf7 {[%clk 0:00:08.3]} 36.
Rg3 {[%clk 0:00:24.6]} 36... Rd4 {[%clk 0:00:07.9]} 37. Qe3 {[%clk 0:00:23.8]}
37... Rxb4+ {[%clk 0:00:07.7]} 38. Ka1 {[%clk 0:00:21.8]} 38... Rf4 {[%clk
0:00:07.4]} 39. h4 {[%clk 0:00:21.3]} 39... Nc5 {[%clk 0:00:06.2]} 40. hxg5+
{[%clk 0:00:19.9]} 40... Ke7 {[%clk 0:00:06.3]} 41. g6 {[%clk 0:00:20.3]} 41...
Qf6 {[%clk 0:00:04.9]} 42. Rh3 {[%clk 0:00:13.8]} 42... e4+ {[%clk 0:00:04.4]}
43. Kb1 {[%clk 0:00:14.4]} 43... exd3 {[%clk 0:00:04.7]} 44. cxd3 {[%clk
0:00:11.6]} 44... Na4 {[%clk 0:00:05]} 45. Qc1 {[%clk 0:00:10.2]} 45... Qc3
{[%clk 0:00:04.8]} 46. Qxc3 {[%clk 0:00:09]} 46... Nxc3+ {[%clk 0:00:05.7]} 47.
Kc2 {[%clk 0:00:09.6]} 47... Nd5 {[%clk 0:00:06.2]} 48. Kd2 {[%clk 0:00:09.7]}
48... Nac7 {[%clk 0:00:06.6]} 49. Rh7 {[%clk 0:00:10]} 49... Kf6 {[%clk
0:00:05.6]} 50. Rh8 {[%clk 0:00:10]} 50... Nb5 {[%clk 0:00:05.8]} 51. a4 {[%clk
0:00:08.9]} 51... Nd6 {[%clk 0:00:05.2]} 52. Rd8 {[%clk 0:00:08.8]} 52... Ke7
{[%clk 0:00:05.2]} 53. Rg8 {[%clk 0:00:08.7]} 53... Kf6 {[%clk 0:00:04.1]} 54.
Rd8 {[%clk 0:00:09.1]} 54... Ke5 {[%clk 0:00:03.9]} 55. Rg8 {[%clk 0:00:09.1]}
55... Ne7 {[%clk 0:00:03]} 56. Rd8 {[%clk 0:00:08.8]} 56... Nxg6 {[%clk
0:00:01.3]} 57. Kc3 {[%clk 0:00:09.5]} 57... Ne7 {[%clk 0:00:01.4]} 58. d4+
{[%clk 0:00:10.4]} 58... Kd5 {[%clk 0:00:01.4]} 59. Rg8 {[%clk 0:00:11.3]} 59...
Kc6 {[%clk 0:00:02]} 60. Rh8 {[%clk 0:00:12.2]} 60... Kd7 {[%clk 0:00:02.7]} 61.
Rh5 {[%clk 0:00:12.9]} 61... Nd5+ {[%clk 0:00:03.6]} 62. Kd3 {[%clk 0:00:13]}
62... Rf5 {[%clk 0:00:04.5]} 63. Rh7 {[%clk 0:00:12.9]} 63... Rxf3+ {[%clk
0:00:04.3]} 64. Ke2 {[%clk 0:00:12.8]} 64... Rf7 {[%clk 0:00:05.2]} 65. Rh8
{[%clk 0:00:13.2]} 65... Nc4 {[%clk 0:00:05.2]} 66. Ra8 {[%clk 0:00:13.6]} 66...
Ke7 {[%clk 0:00:05.7]} 67. Ra7+ {[%clk 0:00:13.6]} 67... Kf6 {[%clk 0:00:06.6]}
68. Ra8 {[%clk 0:00:14.3]} 68... Re7 {[%clk 0:00:07]} 69. a5 {[%clk 0:00:14.8]}
69... Nxa5 {[%clk 0:00:06.4]} 70. Rc8 {[%clk 0:00:15.7]} 70... b5 {[%clk
0:00:05.8]} 71. Kf3 {[%clk 0:00:16.2]} 71... b4 {[%clk 0:00:05.6]} 72. Rb8
{[%clk 0:00:16.7]} 72... Rc7 {[%clk 0:00:05.7]} 73. Rf8+ {[%clk 0:00:17.4]}
73... Ke7 {[%clk 0:00:04.9]} 74. Ke4 {[%clk 0:00:18.3]} 74... b3 {[%clk
0:00:05]} 75. Rf1 {[%clk 0:00:18.2]} 75... Rb7 {[%clk 0:00:04.7]} 76. Ke5 {[%clk
0:00:18.5]} 76... b2 {[%clk 0:00:04.4]} 77. Rg1 {[%clk 0:00:18.6]} 77... Nc3
{[%clk 0:00:04.2]} 78. Rxg7+ {[%clk 0:00:19.5]} 78... Kf8 {[%clk 0:00:04.7]} 79.
Rxb7 {[%clk 0:00:19]} 79... Nxb7 {[%clk 0:00:04.8]} 80. Kxe6 {[%clk 0:00:19.6]}
80... b1=Q {[%clk 0:00:04.9]} 81. d5 {[%clk 0:00:19.8]} 81... Qe4+ {[%clk
0:00:05.2]} 82. Kd7 {[%clk 0:00:20.7]} 82... Qxd5+ {[%clk 0:00:05.3]} 83. Kc8
{[%clk 0:00:21.6]} 83... Qc6+ {[%clk 0:00:05.1]} 84. Kb8 {[%clk 0:00:22.5]}
84... Qd7 {[%clk 0:00:04.9]} 85. Ka7 {[%clk 0:00:23.4]} 85... Nb5+ {[%clk
0:00:04.6]} 86. Kb8 {[%clk 0:00:24.2]} 86... Qc7+ {[%clk 0:00:04.3]} 87. Ka8
{[%clk 0:00:25.1]} 87... Qa5+ {[%clk 0:00:04.2]} 88. Kb8 {[%clk 0:00:25.5]}
88... Qa7+ {[%clk 0:00:04.3]} 89. Kc8 {[%clk 0:00:26.4]} 89... Qa8+ {[%clk
0:00:04.3]} 90. Kd7 {[%clk 0:00:27.3]} 90... Qd8+ {[%clk 0:00:04.1]} 91. Kc6
{[%clk 0:00:28.2]} 91... Qc7+ {[%clk 0:00:04.1]} 92. Kd5 {[%clk 0:00:29.1]}
92... N7d6 {[%clk 0:00:03.9]} 93. Ke6 {[%clk 0:00:30]} 93... Qe7+ {[%clk
0:00:03.7]} 94. Kd5 {[%clk 0:00:30.9]} 94... Qe4+ {[%clk 0:00:03.5]} 95. Kc5
{[%clk 0:00:30.1]} 95... Qd4+ {[%clk 0:00:03.5]} 96. Kc6 {[%clk 0:00:30.5]}
96... Ne4 {[%clk 0:00:02.5]} 97. Kb7 {[%clk 0:00:30.2]} 97... Nbc3 {[%clk
0:00:02.4]} 98. Ka6 {[%clk 0:00:31.1]} 98... Qb4 {[%clk 0:00:01.8]} 99. Ka7
{[%clk 0:00:31.4]} 99... Qb5 {[%clk 0:00:01.7]} 100. Ka8 {[%clk 0:00:32.3]}
100... Nc5 {[%clk 0:00:01.6]} 101. Ka7 {[%clk 0:00:33.2]} 101... Qb7# {[%clk
0:00:01.9]} 0-1

[Event "*** Titled Tuesday Blitz"]
[Site "Chess.com"]
[Date "2020.12.01"]
[Round "6"]
[White "kinga2008"]
[Black "RamyresCoelho"]
[Result "1-0"]
[WhiteElo "2175"]
[BlackElo "2084"]
[TimeControl "180+1"]
[EndTime "11:07:33 PST"]
[Termination "kinga2008 won by resignation"]

1. e4 {[%clk 0:03:00.9]} 1... c5 {[%clk 0:02:58.8]} 2. Nf3 {[%clk 0:02:52.6]}
2... d6 {[%clk 0:02:58.8]} 3. c3 {[%clk 0:02:52]} 3... Nf6 {[%clk 0:02:58]} 4.
Bd3 {[%clk 0:02:34.3]} 4... e6 {[%clk 0:02:56.7]} 5. Bc2 {[%clk 0:02:30.7]} 5...
Be7 {[%clk 0:02:57]} 6. O-O {[%clk 0:02:29.3]} 6... O-O {[%clk 0:02:56.3]} 7. d4
{[%clk 0:02:27.6]} 7... cxd4 {[%clk 0:02:54.3]} 8. cxd4 {[%clk 0:02:26.2]} 8...
Nc6 {[%clk 0:02:54.6]} 9. Nc3 {[%clk 0:02:17.3]} 9... a6 {[%clk 0:02:53.4]} 10.
Bg5 {[%clk 0:02:07]} 10... h6 {[%clk 0:02:52.5]} 11. Bxf6 {[%clk 0:01:28.9]}
11... Bxf6 {[%clk 0:02:53.4]} 12. a3 {[%clk 0:01:24.6]} 12... b5 {[%clk
0:02:50]} 13. d5 {[%clk 0:01:22.3]} 13... Ne5 {[%clk 0:02:47.5]} 14. Nxe5 {[%clk
0:01:21.8]} 14... dxe5 {[%clk 0:02:48.4]} 15. Qd3 {[%clk 0:01:18.4]} 15... Qb6
{[%clk 0:02:45.6]} 16. Rad1 {[%clk 0:01:15.5]} 16... Rd8 {[%clk 0:02:42.1]} 17.
Bb3 {[%clk 0:01:14.6]} 17... Bd7 {[%clk 0:02:29.5]} 18. dxe6 {[%clk 0:01:08.7]}
18... Bxe6 {[%clk 0:02:27.8]} 19. Bd5 {[%clk 0:01:02.4]} 19... Rac8 {[%clk
0:02:24.1]} 20. Qf3 {[%clk 0:01:00.5]} 20... b4 {[%clk 0:02:18.6]} 21. Bxe6
{[%clk 0:00:55.9]} 21... fxe6 {[%clk 0:02:16.3]} 22. Ne2 {[%clk 0:00:51.3]}
22... bxa3 {[%clk 0:02:15.4]} 23. bxa3 {[%clk 0:00:50.6]} 23... Qb2 {[%clk
0:02:08.5]} 24. Ng3 {[%clk 0:00:47.6]} 24... Rxd1 {[%clk 0:02:00.5]} 25. Rxd1
{[%clk 0:00:39.4]} 25... Rc1 {[%clk 0:01:59.2]} 26. a4 {[%clk 0:00:27.2]} 26...
Qc2 {[%clk 0:01:57.9]} 27. Rxc1 {[%clk 0:00:16.2]} 27... Qxc1+ {[%clk
0:01:57.6]} 28. Nf1 {[%clk 0:00:16.6]} 28... Qc6 {[%clk 0:01:56.4]} 29. a5
{[%clk 0:00:13.6]} 29... Qa4 {[%clk 0:01:54.2]} 30. Qc3 {[%clk 0:00:12.4]} 30...
Kh7 {[%clk 0:01:48.2]} 31. h3 {[%clk 0:00:08.7]} 31... Qxe4 {[%clk 0:01:46.8]}
32. Ng3 {[%clk 0:00:06.2]} 32... Qb1+ {[%clk 0:01:45.5]} 33. Kh2 {[%clk
0:00:04.8]} 33... Qb5 {[%clk 0:01:46.4]} 34. Qc2+ {[%clk 0:00:04.1]} 34... g6
{[%clk 0:01:43.4]} 35. Ne4 {[%clk 0:00:02.8]} 35... Bg7 {[%clk 0:01:21.4]} 36.
Qc7 {[%clk 0:00:03.2]} 36... h5 {[%clk 0:01:09.5]} 37. Nf6+ {[%clk 0:00:03]}
37... Kh6 {[%clk 0:01:06.6]} 38. Ng8+ {[%clk 0:00:03.3]} 38... Kh7 {[%clk
0:00:53.1]} 39. Nf6+ {[%clk 0:00:03.1]} 39... Kh6 {[%clk 0:00:50.7]} 40. Qe7
{[%clk 0:00:02.3]} 40... Bxf6 {[%clk 0:00:45.9]} 41. Qxf6 {[%clk 0:00:01.5]}
41... Qe8 {[%clk 0:00:44]} 42. h4 {[%clk 0:00:01.7]} 42... e4 {[%clk 0:00:40.2]}
43. Qg5+ {[%clk 0:00:02.1]} 43... Kh7 {[%clk 0:00:40.2]} 44. Qe5 {[%clk
0:00:02.3]} 44... Qc6 {[%clk 0:00:38.3]} 45. Qf6 {[%clk 0:00:02.1]} 45... Qd6+
{[%clk 0:00:36.9]} 46. g3 {[%clk 0:00:01.9]} 46... Qd7 {[%clk 0:00:34.4]} 47.
Qe5 {[%clk 0:00:01.9]} 47... Qf7 {[%clk 0:00:34.3]} 48. Qxe4 {[%clk 0:00:02.2]}
48... Qxf2+ {[%clk 0:00:33.3]} 49. Kh1 {[%clk 0:00:02.7]} 49... Qf5 {[%clk
0:00:33.2]} 50. Qb7+ {[%clk 0:00:02.7]} 50... Kh6 {[%clk 0:00:33.1]} 51. Qxa6
{[%clk 0:00:03.3]} 51... Qf3+ {[%clk 0:00:32.5]} 52. Kh2 {[%clk 0:00:03.4]}
52... Qf2+ {[%clk 0:00:32.8]} 53. Kh3 {[%clk 0:00:03.9]} 53... Qf5+ {[%clk
0:00:31.4]} 54. Kg2 {[%clk 0:00:04.3]} 54... Qc2+ {[%clk 0:00:30.8]} 55. Kf3
{[%clk 0:00:04.1]} 55... Qd1+ {[%clk 0:00:29.7]} 56. Qe2 {[%clk 0:00:03.4]}
56... Qd5+ {[%clk 0:00:28.6]} 57. Qe4 {[%clk 0:00:03.7]} 57... Qxa5 {[%clk
0:00:27.5]} 58. Qxe6 {[%clk 0:00:03.8]} 58... Qc3+ {[%clk 0:00:27.7]} 59. Kf4
{[%clk 0:00:03.2]} 59... Qd2+ {[%clk 0:00:25.9]} 60. Qe3 {[%clk 0:00:02.9]}
60... Qd6+ {[%clk 0:00:24.6]} 61. Kf3+ {[%clk 0:00:02.7]} 61... Kg7 {[%clk
0:00:24.2]} 62. Qc3+ {[%clk 0:00:02.7]} 62... Kf7 {[%clk 0:00:24.2]} 63. Qe3
{[%clk 0:00:02.7]} 63... Qc6+ {[%clk 0:00:22.4]} 64. Kf2 {[%clk 0:00:02.7]}
64... Qc2+ {[%clk 0:00:21.9]} 65. Kg1 {[%clk 0:00:02.9]} 65... Qd1+ {[%clk
0:00:21.3]} 66. Kg2 {[%clk 0:00:03]} 66... Kf6 {[%clk 0:00:20.3]} 67. Qb6+
{[%clk 0:00:01.8]} 67... Kf5 {[%clk 0:00:19.9]} 68. Qc5+ {[%clk 0:00:02]} 68...
Kf6 {[%clk 0:00:18.8]} 69. Qc6+ {[%clk 0:00:01.8]} 69... Kg7 {[%clk 0:00:19]}
70. Qf3 {[%clk 0:00:02.3]} 70... Qd2+ {[%clk 0:00:17.9]} 71. Qf2 {[%clk
0:00:02.4]} 71... Qd5+ {[%clk 0:00:18.5]} 72. Kh2 {[%clk 0:00:02.2]} 72... Qf7
{[%clk 0:00:19.4]} 73. Qxf7+ {[%clk 0:00:01.8]} 73... Kxf7 {[%clk 0:00:19.6]}
74. Kg2 {[%clk 0:00:02.7]} 74... Ke6 {[%clk 0:00:19.7]} 75. Kf2 {[%clk
0:00:02.7]} 75... Kf6 {[%clk 0:00:18.5]} 76. Ke2 {[%clk 0:00:02.2]} 76... Ke6
{[%clk 0:00:17.5]} 77. Kd2 {[%clk 0:00:01.8]} 77... Kf5 {[%clk 0:00:17.6]} 78.
Ke3 {[%clk 0:00:01.8]} 78... Kg4 {[%clk 0:00:17.9]} 79. Kf2 {[%clk 0:00:02.5]}
79... Kh3 {[%clk 0:00:17.3]} 80. Kf3 {[%clk 0:00:03]} 80... Kh2 {[%clk
0:00:17.5]} 81. Kf2 {[%clk 0:00:02.4]} 81... Kh3 {[%clk 0:00:17.9]} 82. Kf3
{[%clk 0:00:02.6]} 82... Kh2 {[%clk 0:00:17.3]} 83. g4 {[%clk 0:00:02.5]} 83...
Kh1 {[%clk 0:00:18.2]} 84. gxh5 {[%clk 0:00:02.6]} 84... gxh5 {[%clk 0:00:18.6]}
85. Kf4 {[%clk 0:00:03.4]} 85... Kh2 {[%clk 0:00:19.2]} 86. Kg5 {[%clk 0:00:04]}
86... Kh3 {[%clk 0:00:20.1]} 87. Kxh5 {[%clk 0:00:04.6]} 87... Kg3 {[%clk
0:00:21]} 88. Kg5 {[%clk 0:00:05.3]} 88... Kf3 {[%clk 0:00:21.3]} 89. h5 {[%clk
0:00:06.1]} 89... Ke4 {[%clk 0:00:21.2]} 90. h6 {[%clk 0:00:06.8]} 90... Ke5
{[%clk 0:00:21.5]} 91. h7 {[%clk 0:00:07.5]} 91... Ke6 {[%clk 0:00:22.4]} 92.
h8=Q {[%clk 0:00:08.2]} 92... Kf7 {[%clk 0:00:23.3]} 93. Qh6 {[%clk 0:00:08.8]}
93... Kg8 {[%clk 0:00:23.5]} 94. Qa6 {[%clk 0:00:07]} 94... Kg7 {[%clk
0:00:22.5]} 95. Qb7+ {[%clk 0:00:06.7]} 95... Kh8 {[%clk 0:00:22.5]} 96. Kg6
{[%clk 0:00:06.8]} 1-0

[Event "*** Titled Tuesday Blitz"]
[Site "Chess.com"]
[Date "2020.12.01"]
[Round "6"]
[White "Ranindu2003"]
[Black "SergeyShtyka"]
[Result "0-1"]
[WhiteElo "2590"]
[BlackElo "2453"]
[TimeControl "180+1"]
[EndTime "11:07:42 PST"]
[Termination "SergeyShtyka won by resignation"]

1. e4 {[%clk 0:03:00.6]} 1... c5 {[%clk 0:03:00.9]} 2. Nf3 {[%clk 0:03:00.8]}
2... Nc6 {[%clk 0:03:00.7]} 3. d4 {[%clk 0:03:00.3]} 3... cxd4 {[%clk
0:03:00.8]} 4. Nxd4 {[%clk 0:03:01]} 4... Nf6 {[%clk 0:03:01.1]} 5. Nc3 {[%clk
0:02:59.8]} 5... e5 {[%clk 0:03:01]} 6. Ndb5 {[%clk 0:02:59.5]} 6... h6 {[%clk
0:03:00.8]} 7. Nd5 {[%clk 0:02:51.2]} 7... Nxd5 {[%clk 0:03:00]} 8. exd5 {[%clk
0:02:52.1]} 8... a6 {[%clk 0:03:00.4]} 9. dxc6 {[%clk 0:02:43.6]} 9... axb5
{[%clk 0:02:59.6]} 10. cxd7+ {[%clk 0:02:43.6]} 10... Bxd7 {[%clk 0:02:59.6]}
11. Bd3 {[%clk 0:02:42]} 11... Bc6 {[%clk 0:02:56.9]} 12. O-O {[%clk 0:02:41.5]}
12... Qd5 {[%clk 0:02:56.7]} 13. f3 {[%clk 0:02:37.8]} 13... Bc5+ {[%clk
0:02:54]} 14. Kh1 {[%clk 0:02:37.6]} 14... O-O {[%clk 0:02:40.8]} 15. Qe2 {[%clk
0:02:36.2]} 15... b4 {[%clk 0:02:18.1]} 16. Bc4 {[%clk 0:02:24.2]} 16... Qd6
{[%clk 0:02:17.5]} 17. Be3 {[%clk 0:02:17.2]} 17... Bxe3 {[%clk 0:02:11.7]} 18.
Qxe3 {[%clk 0:02:18.1]} 18... Rad8 {[%clk 0:02:07.3]} 19. Rfe1 {[%clk
0:02:14.2]} 19... Rfe8 {[%clk 0:01:59.2]} 20. Bb3 {[%clk 0:02:03.3]} 20... e4
{[%clk 0:01:51.7]} 21. fxe4 {[%clk 0:01:55.5]} 21... Rxe4 {[%clk 0:01:48.5]} 22.
Qf2 {[%clk 0:01:50.8]} 22... Rxe1+ {[%clk 0:01:45.2]} 23. Rxe1 {[%clk
0:01:51.7]} 23... Qg6 {[%clk 0:01:37]} 24. h3 {[%clk 0:01:43.8]} 24... Rd6
{[%clk 0:01:29.4]} 25. Bc4 {[%clk 0:01:25.8]} 25... Rf6 {[%clk 0:01:25.3]} 26.
Qd2 {[%clk 0:01:24.8]} 26... Qg3 {[%clk 0:00:56.4]} 27. Qd8+ {[%clk 0:00:51.6]}
27... Kh7 {[%clk 0:00:56.1]} 28. Qd3+ {[%clk 0:00:48.4]} 28... Qxd3 {[%clk
0:00:55.9]} 29. Bxd3+ {[%clk 0:00:48.1]} 29... Kg8 {[%clk 0:00:54.2]} 30. Kg1
{[%clk 0:00:39.8]} 30... Kf8 {[%clk 0:00:53.1]} 31. Bc4 {[%clk 0:00:38.3]} 31...
Rd6 {[%clk 0:00:50.2]} 32. Re2 {[%clk 0:00:35.6]} 32... Rd4 {[%clk 0:00:49.5]}
33. Bd3 {[%clk 0:00:32.9]} 33... g6 {[%clk 0:00:37.7]} 34. Kf2 {[%clk
0:00:31.4]} 34... Rd6 {[%clk 0:00:33.3]} 35. Kg3 {[%clk 0:00:29.5]} 35... f5
{[%clk 0:00:32.9]} 36. Kf4 {[%clk 0:00:24.3]} 36... Kf7 {[%clk 0:00:31.1]} 37.
Ke3 {[%clk 0:00:16.9]} 37... Re6+ {[%clk 0:00:29]} 38. Kf2 {[%clk 0:00:17]}
38... Rxe2+ {[%clk 0:00:27.8]} 39. Bxe2 {[%clk 0:00:17.9]} 39... Ke6 {[%clk
0:00:24.4]} 40. g4 {[%clk 0:00:14]} 40... fxg4 {[%clk 0:00:22.3]} 41. hxg4
{[%clk 0:00:12.3]} 41... Ke5 {[%clk 0:00:19.7]} 42. Ke3 {[%clk 0:00:12.5]} 42...
Bd5 {[%clk 0:00:16.4]} 43. a3 {[%clk 0:00:08.2]} 43... bxa3 {[%clk 0:00:16.8]}
44. bxa3 {[%clk 0:00:09.1]} 44... b6 {[%clk 0:00:12.3]} 45. Bd3 {[%clk
0:00:06.9]} 45... Bf7 {[%clk 0:00:11.8]} 46. Be2 {[%clk 0:00:06.4]} 46... h5
{[%clk 0:00:11.8]} 47. gxh5 {[%clk 0:00:06.5]} 47... gxh5 {[%clk 0:00:11.9]} 48.
Bf1 {[%clk 0:00:04.2]} 48... h4 {[%clk 0:00:11.2]} 49. Bh3 {[%clk 0:00:04.3]}
49... Be6 {[%clk 0:00:09.2]} 50. Bf1 {[%clk 0:00:02.5]} 50... h3 {[%clk
0:00:09.4]} 51. Kf2 {[%clk 0:00:03.1]} 51... Kd4 {[%clk 0:00:07.2]} 52. Kg3
{[%clk 0:00:01.5]} 52... Kc3 {[%clk 0:00:07]} 53. Bd3 {[%clk 0:00:02.2]} 53...
Bd7 {[%clk 0:00:05.1]} 54. Be4 {[%clk 0:00:01.7]} 54... Kb2 {[%clk 0:00:05.1]}
55. Bg6 {[%clk 0:00:02.3]} 55... Kxa3 {[%clk 0:00:04.3]} 56. Bd3 {[%clk
0:00:03.2]} 56... Kb2 {[%clk 0:00:04.6]} 57. Be4 {[%clk 0:00:03.4]} 57... Kc3
{[%clk 0:00:04.8]} 58. Bd3 {[%clk 0:00:03.9]} 58... b5 {[%clk 0:00:04.9]} 59.
Bh7 {[%clk 0:00:04.6]} 59... b4 {[%clk 0:00:05.1]} 60. Bg6 {[%clk 0:00:05.2]}
60... Be6 {[%clk 0:00:05.4]} 61. Bh7 {[%clk 0:00:05.4]} 61... Bc8 {[%clk
0:00:05.9]} 62. Bg6 {[%clk 0:00:05.6]} 62... Kd2 {[%clk 0:00:06.1]} 63. Bh7
{[%clk 0:00:05.7]} 63... Ke1 {[%clk 0:00:06.5]} 64. Bg6 {[%clk 0:00:05.6]} 64...
Kf1 {[%clk 0:00:06.8]} 65. Kh2 {[%clk 0:00:06.2]} 65... Kf2 {[%clk 0:00:06.9]}
66. Bd3 {[%clk 0:00:06.2]} 66... Be6 {[%clk 0:00:06.8]} 67. Bh7 {[%clk
0:00:06.4]} 67... Kf3 {[%clk 0:00:07.2]} 68. Bd3 {[%clk 0:00:06.3]} 68... Ke3
{[%clk 0:00:07.6]} 69. Bh7 {[%clk 0:00:06.7]} 69... Kd2 {[%clk 0:00:08]} 70. Bg6
{[%clk 0:00:07]} 70... Ba2 {[%clk 0:00:07.9]} 71. Bh7 {[%clk 0:00:07.2]} 71...
Bb1 {[%clk 0:00:08.3]} 72. Kxh3 {[%clk 0:00:07.3]} 72... Bxc2 {[%clk 0:00:08.5]}
73. Bg8 {[%clk 0:00:07.9]} 73... Kc3 {[%clk 0:00:08.9]} 74. Kg3 {[%clk
0:00:07.7]} 74... Bb3 {[%clk 0:00:09.1]} 75. Bh7 {[%clk 0:00:07.3]} 75... Bc4
{[%clk 0:00:09.2]} 76. Kf2 {[%clk 0:00:07.8]} 76... b3 {[%clk 0:00:08.6]} 77.
Ke3 {[%clk 0:00:08.4]} 77... b2 {[%clk 0:00:08.6]} 78. Bb1 {[%clk 0:00:08]}
78... Bb3 {[%clk 0:00:08.1]} 79. Ke2 {[%clk 0:00:08.1]} 79... Bc2 {[%clk
0:00:08.4]} 80. Ba2 {[%clk 0:00:08.6]} 80... Bd3+ {[%clk 0:00:08.1]} 81. Kd1
{[%clk 0:00:08.3]} 81... Bc2+ {[%clk 0:00:08.2]} 82. Ke2 {[%clk 0:00:08.6]}
82... Bf5 {[%clk 0:00:08.3]} 83. Kd1 {[%clk 0:00:08.9]} 83... Bg4+ {[%clk
0:00:08.4]} 84. Ke1 {[%clk 0:00:08.6]} 84... Kc2 {[%clk 0:00:08.8]} 85. Kf2
{[%clk 0:00:08.4]} 85... Bh5 {[%clk 0:00:08]} 86. Ke3 {[%clk 0:00:08.5]} 86...
Bg6 {[%clk 0:00:06]} 87. Kd4 {[%clk 0:00:08.2]} 87... Kc1 {[%clk 0:00:06.4]} 88.
Kc3 {[%clk 0:00:07.6]} 88... Bf7 {[%clk 0:00:06]} 0-1